{"text_format":"1","workbook":"xlsx","n_sheets":1,"sheets":["Лист1"],"not_rendered":{"charts":0,"images":0,"macros":1,"external_links":0,"defined_names":1,"comments":1,"pivot_tables":0},"unopened":[],"bounds":{"document_bytes":16777216,"sheet_cells":100000,"rows_first":2000,"rows_last":500,"rows_between":2000,"halvings":0,"cell_chars":16384,"cell_head_chars":4096},"cells_cut":0,"cells_raw":0,"read":"whole","date_system":"1900"}

{"sheet":"Лист1","index":0,"n_rows":23,"n_cols":5,"rows_kept":23,"cut":false,"hidden":false,"merged":[]}
[null,"Движение впред","Замечания","Индикатор зеленой ячейки","Цвет ячейки требуемый"]
["Mercedes  м733ов",null,null,{"$f":"cell_color_index(B2,color_required)","v":1},{"$f":"cell_color_Q($B$2)","v":5287936}]
["Mercedes  м962хт",null,null,{"$f":"cell_color_index(B3,color_required)","v":1}]
["Mercedes м018рс",null,null,{"$f":"cell_color_index(B4,color_required)","v":1}]
["Mercedes м717ов",null,null,{"$f":"cell_color_index(B5,color_required)","v":1}]
["Mercedes м724ов",null,"нет записей с 23.06.21",{"$f":"cell_color_index(B6,color_required)","v":0}]
["Mercedes м737ов",null,null,{"$f":"cell_color_index(B7,color_required)","v":1}]
["Mercedes м911хт",null,null,{"$f":"cell_color_index(B8,color_required)","v":1}]
["Камаз  м977ек",null,null,{"$f":"cell_color_index(B9,color_required)","v":1}]
["Камаз м978ек",null,"Записи отсутствуют",{"$f":"cell_color_index(B10,color_required)","v":0}]
["Mercedes  м034рс",null,null,{"$f":"cell_color_index(B11,color_required)","v":0}]
["Mercedes  м625мк",null,"последняя запись за 15.08.21",{"$f":"cell_color_index(B12,color_required)","v":1}]
["Mercedes м031рс",null,null,{"$f":"cell_color_index(B13,color_required)","v":1}]
["Mercedes м084рс",null,null,{"$f":"cell_color_index(B14,color_required)","v":1}]
["Mercedes м407ту",null,"последняя запись за 01.09.21",{"$f":"cell_color_index(B15,color_required)","v":1}]
["Mercedes м446те",null,"последняя запись за 03.08.21",{"$f":"cell_color_index(B16,color_required)","v":1}]
["Mercedes м448те",null,null,{"$f":"cell_color_index(B17,color_required)","v":1}]
["Mercedes м454те",null,"последняя запись за 01.09.21",{"$f":"cell_color_index(B18,color_required)","v":1}]
["Mercedes м483те",null,"28.09. в 16.12 курит в кабине",{"$f":"cell_color_index(B19,color_required)","v":1}]
["Mercedes м703ов",null,"последняя запись за 21.05.21",{"$f":"cell_color_index(B20,color_required)","v":1}]
["Mercedes м706ов",null,"последняя запись за 01.09.21",{"$f":"cell_color_index(B21,color_required)","v":1}]
["Mercedes м735ов",null,"последняя запись за 01.09.21",{"$f":"cell_color_index(B22,color_required)","v":1}]
[null,{"$f":"D23/COUNTIF(A2:A22,\"<>\"\"\")","v":0.8571428571428571},null,{"$f":"SUM(D2:D22)","v":18}]